bitfinex/quotes_SOLUSD_20240620
["timestamp","ask_amount","ask_price","bid_price","bid_amount"]
[1718862953981,27.8489,136.26,136.21,21.1668]
[1718862954599,20.51,136.26,136.21,21.1668]
[1718862954797,20.0,136.26,136.21,21.1668]
[1718862955004,20.0,136.27,136.21,21.1668]
[1718862955300,21.77,136.25,136.18,6.2301]
[1718862955507,7.3411,136.22,136.17,16.138]
[1718862955678,20.0,136.21,136.17,16.138]
[1718862955879,0.68,136.24,136.17,16.138]
[1718862956181,7.3405,136.23,136.17,16.138]
[1718862956493,19.23851582,136.3,136.17,16.138]
[1718862956693,0.17,136.26,136.17,16.138]
[1718862956898,7.3396,136.25,136.17,16.138]
[1718862957092,20.17,136.24,136.17,16.138]
[1718862957397,20.0,136.24,136.17,16.138]
[1718862957607,20.0,136.24,136.18,6.1152]
[1718862957796,20.0,136.25,136.18,6.1152]
[1718862958905,0.17,136.24,136.18,6.1152]
[1718862959085,0.17,136.21,136.17,16.138]
[1718862959401,0.51,136.21,136.17,16.138]
[1718862960284,20.0,136.23,136.17,16.138]
[1718862960482,7.3405,136.23,136.17,16.138]
[1718862960700,20.0,136.22,136.17,16.138]
[1718862961896,0.17,136.21,136.17,16.138]
[1718862962076,20.17,136.21,136.17,16.138]
[1718862962787,0.17,136.21,136.17,16.138]
[1718862963806,20.0,136.22,136.17,16.138]
[1718862963981,0.34,136.23,136.17,16.138]
[1718862964185,20.51,136.23,136.17,16.138]
[1718862964382,20.0,136.23,136.17,16.138]
[1718862964891,20.0,136.28,136.17,16.138]
[1718862965388,27.3382,136.28,136.18,6.5515]
[1718862966303,20.0,136.28,136.18,6.5515]
[1718862966491,20.0,136.3,136.18,6.5515]
[1718862966690,7.3378,136.28,136.18,6.5515]
[1718862966901,20.0,136.27,136.18,6.5515]
[1718862967301,7.67952663,136.32,136.23,0.17]
[1718862967509,21.18178973,136.33,136.24,15.0115]
[1718862967510,20.0,136.31,136.24,15.0115]
[1718862970706,20.0,136.32,136.23,0.68]
[1718862970915,2.09815184,136.33,136.24,15.0339]
[1718862971211,2.09815184,136.33,136.25,0.51]
[1718862971384,2.09815184,136.33,136.26,0.17]
[1718862971584,2.09815184,136.33,136.26,21.94]
[1718862971806,2.09815184,136.33,136.28,6.0579]
[1718862972018,7.334,136.36,136.29,16.4519]
[1718862972212,18.3305,136.39,136.29,16.4519]
[1718862972581,18.3327,136.37,136.29,16.4519]
[1718862972803,23.86815184,136.39,136.29,16.4519]
[1718862973000,7.3343,136.35,136.29,16.4519]
[1718862973320,14.22646643,136.41,136.29,16.4519]
[1718862973517,7.3333,136.37,136.29,16.4519]
[1718862973701,7.3337,136.36,136.29,16.4519]
[1718862974007,20.0,136.35,136.29,16.4519]
[1718862974485,18.505,136.36,136.29,16.4519]
[1718862974684,20.17,136.35,136.29,16.4519]
[1718862975308,0.34,136.36,136.29,16.4519]
[1718862975607,27.503,136.37,136.29,16.4519]
[1718862975782,7.3335,136.36,136.29,16.4519]
[1718862975987,20.0,136.35,136.29,16.4519]
[1718862976188,20.17,136.37,136.29,16.4519]
[1718862976718,0.17,136.35,136.29,16.4519]
[1718862977060,20.34,136.35,136.29,16.4519]
[1718862977187,7.3349,136.34,136.29,16.4519]
[1718862977386,27.3352,136.33,136.29,16.4519]
[1718862977587,7.3357,136.32,136.29,16.4519]
[1718862977784,27.8452,136.33,136.29,16.4519]
[1718862977990,0.17,136.32,136.29,16.4519]
[1718862978402,0.51,136.32,136.25,15.3441]
[1718862978595,0.17,136.31,136.25,15.3441]
[1718862978795,0.17,136.3,136.25,15.3441]
[1718862979107,0.51,136.3,136.25,15.3441]
[1718862979293,0.17,136.27,136.24,6.416]
[1718862979494,20.51,136.27,136.24,6.416]
[1718862979722,20.68,136.27,136.22,15.7702]
[1718862979896,27.8484,136.27,136.22,15.7702]
[1718862980299,20.51,136.27,136.22,15.7702]
[1718862980622,20.0,136.27,136.22,15.7702]
[1718862980836,20.0,136.28,136.22,15.7702]
[1718862981127,0.17,136.29,136.22,15.7702]
[1718862981311,20.0,136.3,136.22,15.7702]
[1718862981513,0.68,136.31,136.22,15.7702]
[1718862981711,100.68,136.31,136.22,15.7702]
[1718862981905,0.17,136.27,136.22,15.7702]
[1718862982107,7.339,136.26,136.22,15.7702]
[1718862982307,20.0,136.25,136.22,15.7702]
[1718862983123,0.17,136.25,136.22,15.7702]
[1718862983330,0.17,136.25,136.18,22.4205]
[1718862983331,7.3407,136.23,136.18,22.4205]
[1718862983627,0.68,136.25,136.18,22.4205]
[1718862983628,20.17,136.22,136.18,22.4205]
[1718862983810,20.0,136.22,136.18,22.4205]
[1718862984214,20.34,136.23,136.18,22.4205]
[1718862984417,20.0,136.23,136.18,22.4205]
[1718862984617,0.17,136.24,136.18,22.4205]
[1718862984819,0.68,136.24,136.18,22.4205]
[1718862986132,7.3426,136.2,136.15,6.0999]
[1718862986327,7.5133,136.18,136.14,15.4101]
[1718862986620,20.17,136.19,136.14,15.4101]
[1718862986621,20.51,136.19,136.14,15.4101]
[1718862986823,20.17,136.19,136.14,15.4101]
[1718862987034,20.51,136.18,136.14,15.4101]
[1718862987223,20.51,136.18,136.11,6.91672123]
[1718862987224,7.3444,136.16,136.11,6.91672123]
[1718862987421,0.34,136.15,136.11,6.91672123]
[1718862987727,0.17,136.14,136.11,6.91672123]
[1718862988102,7.6857,136.14,136.11,6.91672123]
[1718862988434,0.34,136.14,136.11,6.91672123]
[1718862988910,7.685,136.15,136.11,6.91672123]
[1718862988911,0.34,136.15,136.11,6.91672123]
[1718862989297,0.34,136.14,136.11,6.91672123]
[1718862990427,7.6857,136.14,136.11,6.91672123]
[1718862990932,0.17,136.13,136.11,6.91672123]
[1718862991609,7.5144,136.16,136.11,6.91672123]
[1718862991812,0.34,136.15,136.11,6.91672123]
[1718862992705,20.17,136.16,136.11,6.91672123]
[1718862992706,20.0,136.16,136.11,6.91672123]
[1718862992914,27.3432,136.18,136.11,6.91672123]
[1718862993208,20.0,136.18,136.11,6.91672123]
[1718862994635,7.3423,136.2,136.11,6.91672123]
[1718862994936,7.3427,136.19,136.11,6.91672123]
[1718862995120,7.3423,136.2,136.11,6.91672123]
[1718862995425,0.17,136.19,136.11,6.91672123]
[1718862995732,0.34,136.19,136.11,6.91672123]
[1718862995930,0.17,136.19,136.11,6.91672123]
[1718862996242,0.68,136.2,136.11,6.91672123]
[1718862996548,122.4618,136.28,136.13,22.1585]
[1718862996709,7.3406,136.23,136.13,22.1585]
[1718862996913,27.341,136.22,136.13,22.1585]
[1718862997426,20.0,136.22,136.13,22.1585]
[1718862997638,7.68244278,136.27,136.13,22.1585]
[1718862997639,7.3409,136.23,136.13,22.1585]
[1718862997820,20.0,136.22,136.13,22.1585]
[1718862998414,0.17,136.21,136.13,22.1585]
[1718862998619,38.3487,136.25,136.13,22.1585]
[1718862998818,7.3416,136.21,136.13,22.1585]
[1718862999025,7.6805,136.24,136.13,22.1585]
[1718862999224,27.3408,136.23,136.13,22.1585]
[1718862999556,20.0,136.22,136.13,22.1585]
[1718862999739,27.3411,136.22,136.14,0.51]
[1718862999904,20.0,136.22,136.14,0.51]
[1718863000109,27.3412,136.22,136.14,0.51]
[1718863000539,7.3405,136.23,136.14,0.51]
[1718863000731,7.68,136.24,136.14,20.51]
[1718863000908,7.51,136.24,136.14,20.51]
[1718863001110,7.3432,136.18,136.14,20.0]
[1718863001332,0.34,136.23,136.13,22.1585]
[1718863001510,0.17,136.22,136.13,22.1585]
[1718863001711,0.17,136.24,136.14,0.17]
[1718863001923,0.17,136.24,136.14,20.68]
[1718863002232,20.0,136.26,136.14,20.68]
[1718863002530,7.3399,136.25,136.14,20.68]
[1718863002734,7.34,136.24,136.14,20.68]
[1718863003343,20.0,136.26,136.14,20.68]
[1718863003514,0.17,136.25,136.14,20.68]
[1718863003715,7.3403,136.24,136.14,20.68]
[1718863003915,7.3406,136.23,136.14,20.68]
[1718863004330,7.34,136.24,136.14,20.68]
[1718863004737,7.6805,136.23,136.14,20.51]
[1718863005038,7.3429,136.19,136.14,20.0]
[1718863005237,0.34,136.22,136.14,20.0]
[1718863005541,7.3416,136.21,136.14,20.0]
[1718863005722,7.6812,136.22,136.14,20.0]
[1718863007119,7.3416,136.21,136.13,22.1585]
[1718863007952,0.17,136.2,136.13,22.1585]
[1718863008242,0.34,136.21,136.13,22.1585]
[1718863008441,0.17,136.2,136.13,22.1585]
[1718863009341,20.34,136.2,136.13,22.1585]
[1718863009527,0.34,136.19,136.13,22.1585]
[1718863009728,0.17,136.18,136.13,22.1585]
[1718863009940,7.5133,136.18,136.13,22.1585]
[1718863010118,0.17,136.18,136.13,22.1585]
[1718863010622,0.34,136.18,136.13,22.1585]
[1718863011034,7.6833,136.18,136.13,22.1585]
[1718863011235,7.5138,136.17,136.13,22.1585]
[1718863011415,7.5138,136.17,136.11,6.91672123]
[1718863011851,0.17,136.17,136.11,6.91672123]
[1718863012024,0.34,136.17,136.11,6.91672123]
[1718863012423,7.6839,136.17,136.11,6.91672123]
[1718863012630,0.17,136.16,136.11,6.91672123]
[1718863012817,0.51,136.16,136.11,6.91672123]
[1718863013021,0.17,136.15,136.11,6.91672123]
[1718863013321,0.51,136.15,136.11,6.91672123]
[1718863013537,0.17,136.16,136.11,6.91672123]
[1718863013715,0.68,136.16,136.11,6.91672123]
[1718863014133,0.34,136.16,136.11,6.91672123]
[1718863014327,0.17,136.16,136.11,6.91672123]
[1718863014649,0.34,136.16,136.11,6.91672123]
[1718863015155,0.34,136.17,136.11,6.91672123]
[1718863015443,7.6838,136.17,136.11,6.91672123]
[1718863016926,20.34,136.18,136.11,6.91672123]
[1718863017133,0.17,136.18,136.11,6.91672123]
[1718863017634,0.34,136.18,136.11,6.91672123]
[1718863017824,0.17,136.17,136.11,6.91672123]
[1718863018021,7.3435,136.18,136.11,6.91672123]
[1718863018355,15.8143,136.24,136.12,6.1555]
[1718863018535,20.0,136.23,136.13,15.789]
[1718863018737,7.3419,136.21,136.13,15.789]
[1718863019245,7.3421,136.2,136.13,15.789]
[1718863019953,7.6817,136.21,136.13,15.789]
[1718863020150,0.34,136.21,136.13,15.789]
[1718863020457,27.3407,136.23,136.13,15.789]
[1718863020660,7.341,136.22,136.13,37.599]
[1718863020856,20.0,136.23,136.13,15.789]
[1718863021067,7.3422,136.2,136.13,15.789]
[1718863021563,0.17,136.21,136.13,15.789]
[1718863021952,7.5118,136.21,136.13,15.789]
[1718863022141,7.3421,136.2,136.13,15.789]
[1718863022647,7.5117,136.21,136.13,15.789]
[1718863022848,7.6821,136.2,136.13,15.789]
[1718863023155,7.5117,136.21,136.13,15.789]
[1718863023365,0.17,136.21,136.13,15.789]
[1718863023741,7.8512,136.22,136.13,15.789]
[1718863023742,0.51,136.22,136.13,15.789]
[1718863023953,7.3403,136.24,136.14,20.17]
[1718863024149,20.0,136.25,136.15,22.5811]
[1718863024150,27.3396,136.25,136.15,22.5811]
[1718863024363,20.0,136.25,136.15,22.5811]
[1718863024556,7.3402,136.24,136.15,22.5811]
[1718863025441,0.34,136.23,136.15,22.5811]
[1718863025966,7.6829899,136.26,136.16,16.372]
[1718863026260,22.5668,136.3,136.18,0.17]
[1718863026445,7.3384,136.27,136.18,0.34]
[1718863026854,7.339,136.26,136.17,20.17]
[1718863027071,20.0,136.29,136.17,20.0]
[1718863027374,18.3459,136.28,136.17,20.0]
[1718863027577,0.17,136.26,136.16,16.372]
[1718863027857,0.17,136.24,136.16,16.372]
[1718863028061,8.02,136.24,136.16,16.372]
[1718863028257,7.3405,136.23,136.16,16.372]
[1718863028452,0.68,136.24,136.16,16.372]
[1718863028852,28.02,136.24,136.16,16.372]
[1718863029240,7.3405,136.23,136.16,16.372]
[1718863029461,20.68,136.24,136.16,16.372]
[1718863029664,0.68,136.24,136.16,16.372]
[1718863030462,27.3395,136.25,136.16,16.372]
[1718863030671,7.5089,136.26,136.17,0.17]
[1718863030862,7.5089,136.26,136.17,0.68]
[1718863031343,7.3395,136.25,136.17,0.68]
[1718863031544,0.17,136.26,136.17,0.68]
[1718863031752,20.34,136.26,136.16,16.372]
[1718863032050,28.8646329,136.31,136.19,16.5135]
[1718863032238,27.3368,136.3,136.2,0.34]
[1718863032445,20.0,136.3,136.21,44.7447]
[1718863032757,7.3363,136.31,136.21,44.7447]
[1718863033158,7.3357,136.32,136.22,0.51]
[1718863033346,7.3357,136.32,136.22,20.51]
[1718863033552,7.3363,136.31,136.22,20.51]
[1718863033954,24.26507337,136.34,136.22,20.51]
[1718863034482,7.337,136.3,136.22,20.17]
[1718863034772,7.337,136.3,136.22,20.0]
[1718863035362,7.337,136.3,136.21,23.1047]
[1718863035363,7.3387,136.27,136.21,22.9347]
[1718863035562,7.3392,136.26,136.21,22.9347]
[1718863035744,7.3391,136.26,136.21,22.9347]
[1718863036064,0.17,136.25,136.14,22.063]
[1718863036271,7.3402,136.24,136.15,20.0]
[1718863037541,7.3413,136.22,136.14,22.063]
[1718863037751,0.17,136.22,136.14,22.063]
[1718863037966,0.34,136.22,136.14,22.063]
[1718863038149,7.3424,136.2,136.14,22.063]
[1718863038352,7.3416,136.21,136.14,22.063]
[1718863038944,7.6812,136.22,136.14,22.063]
[1718863039266,27.3401,136.24,136.14,22.063]
[1718863039470,0.17,136.23,136.14,22.063]
[1718863040267,7.34,136.24,136.15,0.17]
[1718863040472,7.34,136.24,136.15,0.68]
[1718863040762,7.8498,136.25,136.15,0.68]
[1718863040948,0.34,136.25,136.15,20.68]
[1718863041149,7.6794,136.25,136.16,1.46626066]
[1718863041337,0.17,136.24,136.15,20.17]
[1718863041542,0.34,136.25,136.16,0.34]
[1718863041843,7.34,136.24,136.15,20.17]
[1718863043275,7.3407,136.23,136.15,20.0]
[1718863043443,7.3401,136.24,136.16,1.46667371]
[1718863043843,7.3401,136.24,136.16,2.93356399]
[1718863044043,7.34,136.24,136.15,20.0]
[1718863044248,20.0,136.26,136.16,0.17]
[1718863044475,7.3393,136.26,136.16,0.68]
[1718863044665,7.3395,136.25,136.16,0.68]
[1718863044965,0.17,136.27,136.16,0.51]
[1718863045153,7.3395,136.25,136.16,0.17]
[1718863045347,7.3395,136.25,136.16,0.34]
[1718863045670,18.5174,136.26,136.16,0.34]
[1718863045855,7.3401,136.24,136.16,0.34]
[1718863046256,0.34,136.25,136.16,0.34]
[1718863046468,7.6794,136.25,136.16,0.34]
[1718863047077,0.34,136.25,136.15,20.0]
[1718863047249,38.3441,136.29,136.18,6.2961]
[1718863047250,0.17,136.28,136.18,6.2961]
[1718863047450,0.51,136.28,136.18,6.2961]
[1718863047647,7.3388,136.27,136.18,6.2961]
[1718863047844,0.17,136.26,136.18,6.2961]
[1718863050958,7.6778,136.28,136.19,15.1507]
[1718863051171,0.17,136.27,136.19,15.1507]
[1718863051854,100.0,136.31,136.18,6.2961]
[1718863051855,7.3342,136.35,136.23,0.17]
[1718863052060,7.3335,136.36,136.25,0.17]
[1718863052368,7.3341,136.35,136.25,20.68]
[1718863052969,7.3349,136.34,136.25,20.0]
[1718863053875,7.3342,136.35,136.26,45.0]
[1718863054176,7.3347,136.34,136.26,45.0]
[1718863054361,7.3342,136.35,136.26,45.0]
[1718863055150,0.51,136.34,136.26,45.0]
[1718863056258,0.34,136.34,136.26,45.0]
[1718863057571,7.6747,136.34,136.26,45.0]
[1718863057764,0.17,136.33,136.26,45.0]
[1718863058088,7.3324,136.38,136.28,6.1102]
[1718863058385,20.0,136.37,136.29,45.0]
[1718863058578,7.3338,136.36,136.29,45.0]
[1718863059385,0.17,136.35,136.29,45.0]
[1718863059682,0.34,136.35,136.29,45.0]
[1718863060083,7.674,136.35,136.29,45.0]
[1718863060282,0.34,136.35,136.29,45.0]
[1718863060576,0.17,136.36,136.29,45.0]
[1718863060978,7.3335,136.36,136.29,45.0]
[1718863061190,0.17,136.37,136.29,45.0]
[1718863061363,27.3325,136.38,136.29,45.0]
[1718863061565,7.333,136.37,136.29,45.0]
[1718863061771,20.0,136.36,136.29,45.0]
[1718863061970,27.3325,136.38,136.29,45.0]
[1718863062163,9.77267024,136.4,136.31,16.2724]
[1718863062364,20.0,136.39,136.33,6.5314]
[1718863062691,7.6745184,136.4,136.33,6.5314]
[1718863062985,0.15241591,136.42,136.33,6.5314]
[1718863063277,0.15241591,136.42,136.34,45.0]
[1718863063480,27.48271591,136.42,136.34,45.0]
[1718863063683,20.15241591,136.42,136.35,1.46444997]
[1718863063860,20.15241591,136.42,136.36,15.374]
[1718863064066,20.15241591,136.42,136.37,46.46430531]
[1718863064067,0.15241591,136.42,136.37,46.46430531]
[1718863065291,0.15241591,136.42,136.37,45.0]
[1718863066372,7.48271591,136.42,136.37,45.0]
[1718863066867,0.15241591,136.42,136.36,15.374]
[1718863067067,0.32241591,136.42,136.36,15.374]
[1718863067275,0.15241591,136.42,136.36,15.374]
[1718863067668,7.3308,136.41,136.36,15.374]
[1718863067990,0.17,136.39,136.33,23.0677]
[1718863068310,7.3346,136.34,136.33,16.5363]
[1718863068467,7.3341,136.35,136.33,16.5363]
[1718863068769,7.3342,136.35,136.33,16.5363]
[1718863068967,0.51,136.4,136.33,16.5363]
[1718863069284,7.3321,136.39,136.33,16.5363]
[1718863069492,7.3327,136.38,136.33,16.5363]
[1718863069785,0.17,136.39,136.33,16.5363]
[1718863069979,7.502,136.39,136.34,45.0]
[1718863070282,7.3331,136.37,136.34,45.0]
[1718863070587,7.3335,136.36,136.33,16.5363]
[1718863070761,7.3331,136.37,136.33,16.5363]
[1718863070964,7.8426,136.38,136.33,16.5363]
[1718863071165,7.6726,136.38,136.33,16.5363]
[1718863071386,7.333,136.37,136.33,16.5363]
[1718863072268,7.6726,136.38,136.33,16.5363]
[1718863072463,0.17,136.37,136.33,16.5363]
[1718863072773,7.503,136.37,136.33,16.5363]
[1718863073087,7.5024,136.38,136.33,16.5363]
[1718863073293,7.5024,136.38,136.34,45.0]
[1718863073479,7.333,136.37,136.34,45.0]
[1718863073790,7.333,136.37,136.33,16.5363]
[1718863074194,0.17,136.38,136.33,16.5363]
[1718863074382,7.3331,136.37,136.33,16.5363]
[1718863074776,7.6725,136.38,136.34,45.0]
[1718863074989,7.333,136.37,136.34,45.0]
[1718863075183,7.333,136.37,136.3,6.2752]
[1718863075383,7.333,136.37,136.31,45.0]
[1718863075583,20.0,136.36,136.31,45.0]
[1718863076172,20.0,136.37,136.31,45.0]
[1718863076476,27.3331,136.37,136.31,45.0]
[1718863076671,5.98997843,136.42,136.33,0.17]
[1718863076902,20.0,136.41,136.33,45.34]
[1718863077104,0.15241591,136.42,136.33,45.0]
[1718863077301,7.48321591,136.42,136.33,45.0]
[1718863077474,20.0,136.41,136.33,45.0]
[1718863077675,0.15241591,136.42,136.33,45.0]
[1718863077997,27.48271591,136.42,136.33,45.0]
[1718863078187,7.3314,136.4,136.33,45.0]
[1718863078371,27.3319,136.39,136.32,16.1359]
[1718863078795,7.5028,136.38,136.32,16.1359]
[1718863078997,20.0,136.37,136.32,16.1359]
[1718863079305,0.17,136.37,136.32,16.1359]
[1718863079879,20.17,136.37,136.32,16.1359]
[1718863080394,0.17,136.37,136.32,16.1359]
[1718863080589,0.17,136.36,136.32,16.1359]
[1718863080780,7.334,136.35,136.3,6.2752]
[1718863081104,20.0,136.34,136.3,6.2752]
[1718863081399,27.3346,136.34,136.27,6.4494]
[1718863081703,0.51,136.33,136.27,6.4494]
[1718863082986,7.8452,136.33,136.27,6.4494]
[1718863083301,20.0,136.32,136.27,6.4494]
[1718863083808,8.0165,136.31,136.25,16.524]
[1718863083975,20.0,136.3,136.25,16.524]
[1718863084175,0.68,136.31,136.25,16.524]
[1718863084900,20.0,136.32,136.25,16.524]
[1718863085084,20.17,136.33,136.25,16.524]
[1718863085414,20.17,136.33,136.26,1.46548739]
[1718863085588,0.17,136.33,136.26,1.46548739]
[1718863085785,0.51,136.33,136.25,16.524]
[1718863086205,0.51,136.33,136.26,45.0]
[1718863086708,7.8451,136.33,136.26,45.0]
[1718863086894,20.0,136.32,136.26,45.0]
[1718863087483,0.17,136.32,136.26,45.0]
[1718863087706,0.51,136.32,136.26,45.0]
[1718863088207,20.17,136.33,136.26,45.0]
[1718863088811,0.17,136.32,136.26,45.0]
[1718863089629,7.6757,136.32,136.26,45.0]
[1718863089786,20.34,136.31,136.26,45.0]
[1718863089988,0.17,136.3,136.26,45.0]
[1718863090307,7.5067,136.3,136.26,45.0]
[1718863090824,27.6776,136.29,136.23,6.627]
[1718863091102,20.34,136.29,136.23,6.627]
[1718863091410,0.34,136.28,136.22,16.552]
[1718863091591,7.3392,136.26,136.19,6.4881]
[1718863091801,27.8494,136.25,136.19,6.4881]
[1718863092107,20.34,136.25,136.19,6.4881]
[1718863092311,27.6794,136.25,136.19,6.4881]
[1718863092512,20.34,136.25,136.19,6.4881]
[1718863092916,20.0,136.24,136.19,6.4881]
[1718863093208,0.34,136.25,136.19,6.4881]
[1718863093625,20.0,136.26,136.19,6.4881]
[1718863093924,0.17,136.25,136.19,6.4881]
[1718863094107,7.8495,136.25,136.19,6.4881]
[1718863094306,20.0,136.24,136.2,45.0]
[1718863095020,20.17,136.28,136.2,45.0]
[1718863095229,0.17,136.26,136.2,45.0]
[1718863095724,20.17,136.26,136.2,45.0]
[1718863096018,20.0,136.28,136.2,45.0]
[1718863096818,20.0,136.3,136.2,45.0]
[1718863097020,7.3375,136.29,136.2,45.0]
[1718863097233,20.0,136.28,136.2,45.0]
[1718863097414,27.3362,136.31,136.2,45.0]
[1718863097601,7.3368,136.3,136.2,45.0]
[1718863097804,20.0,136.29,136.2,45.0]
[1718863098016,7.66351586,136.33,136.21,38.5384]
[1718863098205,20.0,136.32,136.23,0.17]
[1718863098415,20.0,136.32,136.23,0.34]
[1718863098716,20.0,136.32,136.24,6.6661]
[1718863098923,27.3357,136.32,136.25,45.0]
[1718863099298,20.0,136.32,136.25,45.0]
[1718863099519,7.3365,136.31,136.25,45.0]
[1718863099817,7.3363,136.31,136.25,45.0]
[1718863099996,7.3359,136.32,136.25,45.0]
[1718863100199,7.3357,136.32,136.25,45.0]
[1718863100402,20.0,136.31,136.25,45.0]
[1718863101030,29.41484434,136.37,136.26,15.0222]
[1718863101031,7.66484434,136.37,136.26,15.0222]
[1718863101228,63.63902827,136.4,136.27,66.75]
[1718863101229,20.0,136.36,136.27,66.75]
[1718863101408,7.3319,136.39,136.28,20.17]
[1718863101409,7.3326,136.38,136.28,20.17]
[1718863101617,20.0,136.37,136.29,45.0]
[1718863101793,20.0,136.39,136.29,45.0]
[1718863101794,7.3327,136.38,136.29,45.0]
[1718863101995,20.0,136.37,136.29,45.0]
[1718863102196,27.3329,136.37,136.29,45.0]
[1718863102626,20.0,136.37,136.29,45.0]
[1718863103622,27.333,136.37,136.29,45.0]
[1718863103829,20.0,136.37,136.29,45.0]
[1718863104205,27.333,136.37,136.29,45.0]
[1718863104412,20.0,136.37,136.3,22.9783]
[1718863104719,20.0,136.38,136.31,45.17]
[1718863104925,7.3316,136.4,136.31,45.17]
[1718863105224,27.332,136.39,136.31,45.0]
[1718863105424,20.0,136.38,136.31,45.0]
[1718863105625,7.3315,136.4,136.31,45.0]
[1718863105833,20.0,136.39,136.31,45.0]
[1718863106497,20.34,136.4,136.31,45.0]
[1718863106708,0.34,136.4,136.31,45.0]
[1718863106927,20.0,136.4,136.31,45.0]
[1718863108009,7.3293,136.44,136.34,0.17]
[1718863108207,27.3297,136.43,136.35,6.4113]
[1718863108405,20.0,136.43,136.36,0.34]
[1718863108620,7.3283,136.46,136.36,0.34]
[1718863108621,20.0,136.45,136.36,45.34]
[1718863108824,27.3287,136.45,136.36,45.34]
[1718863109137,20.0,136.45,136.36,45.0]
[1718863109315,27.329,136.45,136.37,0.17]
[1718863109628,20.0,136.44,136.37,0.68]
[1718863109927,27.3281,136.46,136.37,0.68]
[1718863110129,20.0,136.46,136.37,0.68]
[1718863110310,32.41311135,136.49,136.4,6.5269]
[1718863110311,20.0,136.47,136.4,6.5269]
[1718863110512,7.328,136.47,136.41,45.0]
[1718863110829,7.3281,136.46,136.41,45.0]
[1718863111431,18.3151,136.5,136.41,45.0]
[1718863111626,7.3274,136.48,136.41,45.0]
[1718863111830,0.34,136.49,136.41,45.0]
[1718863112028,20.34,136.49,136.41,45.0]
[1718863112415,7.3282,136.46,136.41,45.0]
[1718863112808,7.3278,136.47,136.41,45.0]
[1718863113024,20.0,136.46,136.41,45.0]
[1718863113737,0.17,136.45,136.4,6.5269]
[1718863114038,20.17,136.48,136.4,6.5269]
[1718863114242,7.3283,136.46,136.4,6.5269]
[1718863114539,0.34,136.47,136.4,6.5269]
[1718863114540,27.3289,136.45,136.4,6.5269]
[1718863114909,20.0,136.45,136.41,45.0]
[1718863115214,20.0,136.46,136.41,45.0]
[1718863115540,7.3298,136.43,136.38,15.6018]
[1718863115720,7.3303,136.42,136.38,15.6018]
[1718863115926,7.3299,136.43,136.38,15.6018]
[1718863116626,7.3304,136.42,136.38,15.6018]